Cogmind - Beta 12 @@@ ROGUE MODE // 2023.08.05 @ 01:13:40 Player: KIPPY!!! Result: Destroyed by G-47 Trooper with Particle Gun Performance ------------- Evolutions (0) 0 Regions Visited (2) 400 Robots Destroyed (19) 95 Value Destroyed (463) 463 Prototype IDs (0) 0 Alien Tech Used (0) 0 Bonus (0) 0 TOTAL SCORE: 958 Bonus ------- None Cogmind --------- Core Integrity 0/250 Matter 300/300 Energy 100/100 System Corruption 0% Temperature Cool (9) Movement Flying (40) Location -10/Mines Parts ------- > --- POWER (1) -------- (None) > --- PROPULSION (2) --- Flight Unit > --- UTILITY (2) ------ Visual Processing Unit > --- WEAPON (2) ------- (None) > --- INVENTORY (5) ---- Compact Wheel Peak State ------------ > --- POWER ------------ Ion Engine > --- PROPULSION ------- Wheel Wheel > --- UTILITY ---------- Heat Sink Visual Processing Unit > --- WEAPON ----------- Beam Cannon Beam Cannon > --- INVENTORY -------- (None) [Rating: 8] Favorites ----------- Power Ion Engine Engine Ion Engine Propulsion Wheel Leg Aluminum Leg Wheel Wheel Flight Unit Flight Unit Utility Heat Sink Device Heat Sink Storage Medium Matter Pod Processor Signal Interpreter Weapon Beam Cannon Energy Gun EM Pulse Gun Energy Cannon Beam Cannon Ballistic Gun Light Assault Rifle Build | -11 -10 -10 ------- Run | Jun Mat Min Slots Evolved . | . . . Power . | . . . Propulsion . | . . . Utility . | . . . Weapon . | . . . Parts Attached 24 | 9 15 . Power 2 | 1 1 . Engine 2 | 1 1 . Core . | . . . Reactor . | . . . Propulsion 7 | 4 3 . Treads . | . . . Leg 2 | 2 . . Wheel 2 | 2 . . Hover . | . . . Flight 3 | . 3 . Utility 7 | . 7 . Device 2 | . 2 . Storage 3 | . 3 . Processor 2 | . 2 . Hackware . | . . . Protection . | . . . Artifact . | . . . Weapon 8 | 4 4 . Energy Gun 4 | 3 1 . Energy Cannon 2 | . 2 . Ballistic Gun 2 | 1 1 . Ballistic Cannon . | . . . Launcher . | . . . Special Weapon . | . . . Impact Weapon . | . . . Slashing Weapon . | . . . Piercing Weapon . | . . . Special Melee Weapon . | . . . Unidentified Prototypes . | . . . Parts Lost 8 | . 4 4 Power 1 | . 1 . Propulsion 2 | . 1 1 Utility 1 | . . 1 Weapon 4 | . 2 2 Highest Loss Streak 4 | . 3 4 To Critical Strikes . | . . . Average Slot Usage (%) 90 | . 91 65 Engine 11 | . 12 . Wheel 20 | . 21 . Flight 3 | . 2 19 Device 7 | . 7 11 Storage 6 | . 6 . Processor 12 | . 12 14 Energy Gun 3 | . 3 11 Energy Cannon 21 | . 22 . Ballistic Gun 1 | . 1 8 Naked Turns . | . . . Heaviest Build 48 | 7 48 3 Greatest Support 20 | 20 20 8 Greatest Overweight (x) 3 | . 3 . Average Overweight (x) . | . . . Largest Inventory Capacity 15 | 5 15 5 Average Capacity 5 | 5 5 5 Most Carried 6 | 5 6 1 Average Carried . | 2 . 1 Final Capacity 5 | 5 5 5 Final Carried 3 | 3 1 1 Class Distribution -------------------- 89% | Mutant 10% | Scavenger-Mutant Dominant Class ---------------- Mutant | -10/Materials Scavenger-Mutant | -10/Mines Resources | -11 -10 -10 ----------- Run | Jun Mat Min Matter Collected 435 | 290 145 . Remotely . | . . . Salvage Created 608 | 45 563 . Parts 45 | 4 41 . Haulers Intercepted 1 | . 1 . Recyclers Shooed . | . . . Parts Field Recycled . | . . . Retrieved Matter . | . . . Parts Self-Destructed . | . . . Prevented . | . . . Kills | -11 -10 -10 ------- Run | Jun Mat Min Combat Hostiles Destroyed 15 | 1 14 . Guns 3 | 1 2 . Cannons 12 | . 12 . Classes Destroyed 4 | 1 3 . Hauler 1 | . 1 . Watcher 3 | . 3 . Swarmer 5 | . 5 . Grunt 10 | 1 9 . Best Kill Streak 5 | 1 5 . Combat Bots Only 4 | 1 4 . Max Kills in Single Turn 1 | 1 1 . Gunslinging . | . . . Exploded . | . . . Melee . | . . . Uniques/NPCs Destroyed . | . . . Combat | -11 -10 -10 -------- Run | Jun Mat Min Damage Taken 908 | 44 528 336 Core 251 | 11 77 163 Absorbed by Shields . | . . . Core Remaining (%) 95 | 95 . . Volleys Fired 63 | 4 49 10 Largest 2 | 2 2 2 Hottest 120 | 80 120 60 Shots Fired 99 | 8 73 18 Gun 38 | 8 12 18 Cannon 61 | . 61 . Launcher . | . . . Special . | . . . Kinetic 8 | . . 8 Thermal 73 | . 63 10 Explosive . | . . . Electromagnetic 18 | 8 10 . Robot Hit Streak 7 | 2 7 3 Robot Miss Streak 4 | 1 4 2 Penetration Max . | . . . Secondary Targets . | . . . Shots Hit Robots 60 | 5 44 11 Core Hits 25 | 2 20 3 Critical Kills . | . . . Critical Parts Destroyed . | . . . Critical Strikes . | . . . Melee Attacks . | . . . Impact . | . . . Slashing . | . . . Piercing . | . . . Sneak Attacks . | . . . Combat Hostiles . | . . . Follow-up Attacks . | . . . Damage Inflicted 970 | 75 763 132 Guns 288 | 75 81 132 Cannons 644 | . 644 . Explosions 38 | . 38 . Melee . | . . . Ramming . | . . . Kinetic 42 | . . 42 Thermal 783 | . 693 90 Explosive . | . . . Electromagnetic 145 | 75 70 . Impact . | . . . Slashing . | . . . Piercing . | . . . Highest Corruption . | . . . Average Corruption . | . . . Corruption Purged . | . . . Corruption Blocked . | . . . Overload Shots . | . . . Overflow Damage . | . . . Projectiles . | . . . Explosions . | . . . Melee . | . . . Knockbacks . | . . . Impact . | . . . Kinetic . | . . . Secondary . | . . . Self-Inflicted Damage . | . . . Shots . | . . . Rammed . | . . . Targets Rammed . | . . . Kicked . | . . . Crushed . | . . . Highest Temperature 318 | 96 318 12 Average Temperature 97 | 56 109 6 Received Heat Transfer 408 | 24 171 213 Effects 2 | . 2 . Interference 2 | . 2 . Siege Activations . | . . . Robots Corrupted . | . . . Combat Hostiles . | . . . Parts Fried . | . . . Impact Corruptions . | . . . Robots Melted . | . . . Combat Hostiles . | . . . Parts Melted . | . . . Heat Transferred 1594 | . 1394 200 Parts Sabotaged . | . . . Parts Stolen . | . . . Parts Stripped . | . . . Power Chain Reactions 1 | . 1 . Missiles Intercepted . | . . . Alert | -11 -10 -10 ------- Run | Jun Mat Min Peak Influence 280 | 20 280 73 Initial 73 | . 13 73 Average 117 | 1 132 58 Maximum Alert Level 1 | . 1 . Low Security (%) 92 | 100 91 100 Level 1 7 | . 8 . Level 2 . | . . . Level 3 . | . . . Level 4 . | . . . Level 5 . | . . . High Security . | . . . Max Security . | . . . Squads Dispatched 7 | . 7 . Investigation 6 | . 6 . Extermination . | . . . Reinforcement 1 | . 1 . Assault . | . . . Garrison . | . . . Intercept . | . . . Searches Triggered . | . . . Construction Impeded . | . . . Haulers Reinforced . | . . . Active Scanning Responses . | . . . Cargo Convoy Interrupts . | . . . Stealth | -11 -10 -10 --------- Run | Jun Mat Min Distress Signals 2 | . 2 . Communications Jammed . | . . . Distress Signals . | . . . Times Spotted 29 | 1 26 2 Peak Tracking Total 5 | 1 5 2 Tactical Retreats 2 | . 2 . Traps | -11 -10 -10 ------- Run | Jun Mat Min Traps Triggered 3 | . 3 . Indirectly . | . . . Trap Hack Attempts . | . . . Triggered . | . . . Disarmed . | . . . Reprogrammed . | . . . Reused . | . . . Traps Extracted . | . . . Installed . | . . . Triggered . | . . . Machines | -11 -10 -10 ---------- Run | Jun Mat Min Machines Disabled 1 | . 1 . Max in Single Turn 1 | . 1 . Machines Repaired . | . . . Machines Sabotaged . | . . . Overloaded Fab Kills . | . . . Hacking | -11 -10 -10 --------- Run | Jun Mat Min Machines Accessed 9 | . 9 . Terminals 6 | . 6 . Fabricators . | . . . Repair Stations 1 | . 1 . Recycling Units 2 | . 2 . Scanalyzers . | . . . Garrison Access . | . . . Total Hacks 30 | . 30 . Successful 21 | . 21 . Failed 9 | . 9 . Catastrophic . | . . . Database Lockouts . | . . . Manual 2 | . 2 . Terminals 26 | . 26 . Fabricators . | . . . Repair Stations 1 | . 1 . Recycling Units 3 | . 3 . Scanalyzers . | . . . Garrison Access . | . . . Terminal Hacks 17 | . 17 . Record 7 | . 7 . Robot Analysis 1 | . 1 . Alert Level 3 | . 3 . Locate Traps 1 | . 1 . Dispatch Records 1 | . 1 . Reinforcement Status 1 | . 1 . Hauler Manifests 2 | . 2 . Zone Layout 1 | . 1 . Fabricator Hacks . | . . . Repair Station Hacks 1 | . 1 . Scan Component 1 | . 1 . Recycling Unit Hacks 3 | . 3 . Recycle Component 1 | . 1 . Report Inventory 2 | . 2 . Scanalyzer . | . . . Garrison Access Hacks . | . . . Unauthorized Hacks . | . . . Terminals . | . . . Fabricators . | . . . Repair Stations . | . . . Recycling Units . | . . . Scanalyzers . | . . . Garrison Access . | . . . Data Cores Recovered . | . . . Used . | . . . Hacking Detections 5 | . 5 . Full Trace Events 3 | . 3 . Feedback Events . | . . . Feedback Blocked . | . . . Robot Schematics Acquired . | . . . Robots Built . | . . . Authchips . | . . . Time . | . . . Total Robot Build Rating . | . . . Part Schematics Acquired . | . . . Parts Built . | . . . Authchips . | . . . Time . | . . . Total Part Build Rating . | . . . Parts Repaired . | . . . Time . | . . . Parts Recycled 1 | . 1 . Recycled Matter . | . . . Retrieved Matter . | . . . Retrieved Components . | . . . Parts Scanalyzed . | . . . Part Schematics Acquired . | . . . Parts Damaged . | . . . Bothacking | -11 -10 -10 ------------ Run | Jun Mat Min Used RIF Installer . | . . . Robots Hacked . | . . . Non-combat . | . . . Combat . | . . . Robot Hacks Applied . | . . . Relay Couplers Released . | . . . Fabnet Peak Effective % . | . . . Robots Rewired . | . . . Allies Hacked . | . . . Hacks Repelled . | . . . Allies | -11 -10 -10 -------- Run | Jun Mat Min Total Allies . | . . . Largest Group . | . . . Highest-Rated Group . | . . . Highest-Rated Ally . | . . . Total Orders . | . . . Ally Attacks . | . . . Total Damage . | . . . Kills . | . . . Allies Corrupted . | . . . Allies Melted . | . . . Intel | -11 -10 -10 ------- Run | Jun Mat Min Robot Analysis Total 1 | . 1 . Derelict Logs Recovered . | . . . Drone Launches . | . . . Drone Recoveries . | . . . Exploration | -11 -10 -10 ------------- Run | Jun Mat Min Turns Passed 1043 | 87 902 54 Spaces Moved 799 | 80 678 41 Core 81 | 44 37 . Treads . | . . . Legs . | . . . Wheels 528 | 36 492 . Hover . | . . . Flight 190 | . 149 41 Fastest Speed 37 | 50 37 37 Average Speed 75 | 63 79 37 Slowest Speed 200 | 80 200 40 Overloaded Moves . | . . . Propulsion Burnouts . | . . . Robots Hopped . | . . . Cave-ins Triggered . | . . . Exploration Rate (%) 34 | 5 80 17 Regions Visited 2 Branch Regions 1 Pre-discovered Areas . | . . . Known Exits Taken . | . . . Unknown Exits Taken 2 | 1 1 . Scrap Searched 1 | . . 1 Spaces Dug . | . . . Terrain Destroyed 5 | . 5 . Melee . | . . . Projectile . | . . . AOE 5 | . 5 . Terrain Rammed . | . . . Walls Destroyed . | . . . Machines Disabled . | . . . Actions | -11 -10 -10 --------- Run | Jun Mat Min Total 1144 | 109 972 63 Wait 214 | 2 200 12 Move 797 | 79 677 41 Hop . | . . . Pick Up 27 | 10 17 . Fast Attach . | . . . Attach 17 | 8 9 . Detach 5 | 3 2 . Swap 7 | 1 6 . Drop 14 | 2 12 . Fire 63 | 4 49 10 Melee . | . . . Ram . | . . . Kick . | . . . Crush . | . . . Escape Stasis . | . . . Rewire . | . . . Trap . | . . . Miscellaneous . | . . . Route ------- -11/Junkyard -10/Materials (discovered 4 exits: [*Mat x2] / [*Min x2]) -10/Mines History --------- Turn | Location | Event 3 | -11/Junkyard | Met Revision 17 67 | -11/Junkyard | Discovered new exit (range 8) 88 | -11/Junkyard | Entered Materials 317 | -10/Materials | Build established: Mutant 635 | -10/Materials | Discovered new exit (range 12) 848 | -10/Materials | Discovered new exit (range 10) 939 | -10/Materials | Lost 3 parts (1p2w) 974 | -10/Materials | Discovered new exit (range 16) 979 | -10/Materials | Discovered new exit (range 17) 990 | -10/Materials | Entered Mines 993 | -10/Mines | Met a Derelict bent on vengeance 1020 | -10/Mines | Core integrity fell below 50% 1036 | -10/Mines | Core integrity fell below 20% 1044 | -10/Mines | Destroyed by G-47 Trooper with Particle Gun Last Messages --------------- 00963_ ALERT: Suspicious activity at Terminal M002. Dispatching Investigation squad. 00968_ Acquired Com. Wheel. 00974_ EXIT=FOUND 00984_ Triggered Alarm Trap. 00984_ An alarm sounds. 00984_ ALERT: Alarm triggered, dispatching investigation squad. LOCATION=UNKNOWN GOAL=ESCAPE Something is scanning the area. 00991_ A derelict wanders into view. 00993_ AO-7OP(g): "I WILL HAVE VENGEANCE!" 00994_ Searching scrap... 00994_ Found Med. Matter Pod. 00994_ Found 20 Matter. 01011_ Flight Unit destroyed. 01021_ Lgt. Assault Rifle destroyed. 01032_ Heat Sink destroyed. 01033_ Sml. Laser destroyed. 01035_ Critical hit (Burn: +37). Map ----- +----------------------------------------------------+ | ?????????????????????????????????????????????????? | | ?????????????????????????????????????????????????? | | ???????????????????????????####??????????????????? | | ??????????????????????????## ##?????????????????? | | ?????????????????????????## #?????????????????? | | ?????????????##?????????## #?????????????????? | | ????????????## ???????## #?????????????????? | | ????????????# ??????## #?????????????????? | | ????????????# ?????## ##????????????????? | | ???????????## ???## ##???????????????? | | ??????###### ?### ????????????????? | | ?????? ## ?????????????????? | | ??????# ## #??????????????????? | | ??????# #??# ## #??????????????????? | | ??????# #???# #??####????????????? | | ??????# #???# ### ### #????????????? | | ??????# #???# ###?# ## #?????????? | | ??????# #???## ##???# #?????????? | | ??????# ###??## #????# ####?????????? | | ####### ##??##### #???##g #????????????? | | # ######## ##### g ## ##????????????? | | # ##### ##% ## ##?###?????????????? | | ??????# ##!###### #??????????????????? | | ??????## #???# #??????????????????? | | ???????###########???# t ##??????????????????? | | ?????????????????????## @ ##???????????????????? | | ??????????????????????#######????????????????????? | | ?????????????????????????????????????????????????? | | ?????????????????????????????????????????????????? | | ?????????????????????????????????????????????????? | | ?????????????????????????????????????????????????? | | ?????????????????????????????????????????????????? | | | | | | | | | | | | | | | | | | | | | | | | | | | | | | | | | | | | | +----------------------------------------------------+ Best States ------------- Heat Dissipation 35 Energy Generation 10 Energy Capacity 250 Matter Stores 300 Matter Capacity 400 Sight Range 18 Terrain Scan Density 10 Evasion (%) 62 Item Schematics ----------------- None Robot Schematics ------------------ None Fabricated ------------ Nothing Alien Tech Used ----------------- None Achievements -------------- Loot Pinata Shopping List Challenges ------------ None Game ------ Seed MeleeKineticCompactor Manual? 0 Play Time 00:27:25 Cumulative 2.2 hours Start 2023.08.05 @ 00:44:25 End 2023.08.05 @ 01:13:40 Sessions 1 Manual Loads 0 Difficulty Rogue Special Mode None Game No. 4 Rogue 4 Adventurer 0 Explorer 0 Win Type - Total 0 Types 0/0/0/0/0/0/0/0/0 Lore% 1 Gallery% 3 Achievement% 2 Wizard Run 0 Options --------- ASCII 0 Keyboard 0 Movement Mouse Keybinds 0 Fullscreen 2 Font 18/SmallcapsGlow Map View 76x50 Tactical HUD 1 Map Filters NONE Filters NONE Steam 1 RUN: cf2e6765-0d70-41e8-b1a6-fe08f383bf65